{"text_format":"3","workbook":"xlsx","n_sheets":6,"sheets":["PERÍODO LETIVO","CRÉDITOS","ORÇAMENTO","DESPESAS LÍQUIDAS MENSAIS","DESPESAS DO PERÍODO LETIVO","LIVROS"],"not_rendered":{"defined_names":21},"read":"whole","date_system":"1900"}

{"sheet":"PERÍODO LETIVO","index":0,"n_rows":29,"n_cols":9,"rows_kept":29,"merged":[[2,3,2,4]]}
[null,"MEUS HORÁRIOS DE AULAS"]
[null,"PERÍODO LETIVO DE OUTONO"]
[null,null,"HORA DE INÍCIO","HORA DE INTERVALO",null,"ANO"]
[null,null,"09:00:00",60,"(Em minutos)"]
[null,"HORÁRIO ","SEG","TER","QUA","QUI","SEX","SÁB","DOM"]
[null,{"$f":"HoraDeInício+TIME(0,(ROW(A1)-1)*HoraDeIntervalo,0)","v":"09:00:00"},"Café da manhã","Café da manhã","Café da manhã","Café da manhã","Café da manhã"]
[null,"10:00:00","Gestão: Palestra Edif. B, Sala 256"]
[null,"11:00:00",{"$nulls":3},"Física: Laboratório \nEdif. J, Sala 309"]
[null,"12:00:00"]
[null,"13:00:00"]
[null,"14:00:00"]
[null,"15:00:00"]
[null,"16:00:00"]
[null,"17:00:00"]
[null,"18:00:00"]
[null,"19:00:00"]
[null,"20:00:00"]
[null,"21:00:00"]
[null,"22:00:00"]
[null,"23:00:00"]
[null,1]
[null,1.0416666666666665]
[null,1.0833333333333335]
[null,1.125]
[null,1.1666666666666665]
[null,1.2083333333333335]
[null,1.25]
[null,1.2916666666666665]
[null,1.3333333333333335]

{"sheet":"CRÉDITOS","index":1,"n_rows":17,"n_cols":8,"rows_kept":17}
[null,"FACULDADE"]
[null,"PLANEJADOR DE CRÉDITOS"]
[null,"Título do grau",{"$f":"Ano","v":"ANO"}]
[null,"PROGRESSO GERAL",null,"PROGRESSO GERAL"]
[null,{"$f":"AVERAGE(Cursos[NOTA])","v":3.5},{"$f":"IFERROR(TEXT(AVERAGEIF(Cursos[CONCLUÍDO],\"Sim\",Cursos[NOTA]),\"0,00\"),\"0,00\")&\" GPA atual\"","v":"3,50 GPA atual"},{"$f":"COUNTIF(Cursos[CONCLUÍDO],\"Sim\")/COUNTA(Cursos[TÍTULO DO CURSO])","v":0.6666666666666666},{"$f":"TEXT(COUNTIF(Cursos[CONCLUÍDO],\"Sim\")/COUNTA(Cursos[TÍTULO DO CURSO]),\"0%\")&\" Concluído\"","v":"67% Concluído"}]
[null,"Observação: O resumo de créditos a seguir é populado automaticamente pelas entradas na tabela de Cursos Universitários abaixo"]
[null,"EXIGÊNCIAS","TOTAL DE CRÉDITOS","ACUMULADO","NECESSÁRIO"]
[null,"Área de concentração acadêmica primária",{"$f":"IF(SUMIF(Cursos[EXIGÊNCIAS],CRÉDITOS!$B8,Cursos[CRÉDITOS])=0,\"0\",SUMIF(Cursos[EXIGÊNCIAS],CRÉDITOS!$B8,Cursos[CRÉDITOS]))","v":4},{"$f":"SUMIFS(Cursos[CRÉDITOS],Cursos[EXIGÊNCIAS],CRÉDITOS!$B8,Cursos[CONCLUÍDO],\"Sim\")","v":4},{"$f":"SUMIF(Cursos[EXIGÊNCIAS],CRÉDITOS!$B8,Cursos[CRÉDITOS])-SUMIFS(Cursos[CRÉDITOS],Cursos[EXIGÊNCIAS],CRÉDITOS!$B8,Cursos[CONCLUÍDO],\"Sim\")","v":0}]
[null,"Área de concentração acadêmica secundária",{"$f":"IF(SUMIF(Cursos[EXIGÊNCIAS],CRÉDITOS!$B9,Cursos[CRÉDITOS])=0,\"0\",SUMIF(Cursos[EXIGÊNCIAS],CRÉDITOS!$B9,Cursos[CRÉDITOS]))","v":3},{"$f":"SUMIFS(Cursos[CRÉDITOS],Cursos[EXIGÊNCIAS],CRÉDITOS!$B9,Cursos[CONCLUÍDO],\"Sim\")","v":0},{"$f":"SUMIF(Cursos[EXIGÊNCIAS],CRÉDITOS!$B9,Cursos[CRÉDITOS])-SUMIFS(Cursos[CRÉDITOS],Cursos[EXIGÊNCIAS],CRÉDITOS!$B9,Cursos[CONCLUÍDO],\"Sim\")","v":3}]
[null,"Curso opcional",{"$f":"IF(SUMIF(Cursos[EXIGÊNCIAS],CRÉDITOS!$B10,Cursos[CRÉDITOS])=0,\"0\",SUMIF(Cursos[EXIGÊNCIAS],CRÉDITOS!$B10,Cursos[CRÉDITOS]))","v":2},{"$f":"SUMIFS(Cursos[CRÉDITOS],Cursos[EXIGÊNCIAS],CRÉDITOS!$B10,Cursos[CONCLUÍDO],\"Sim\")","v":2},{"$f":"SUMIF(Cursos[EXIGÊNCIAS],CRÉDITOS!$B10,Cursos[CRÉDITOS])-SUMIFS(Cursos[CRÉDITOS],Cursos[EXIGÊNCIAS],CRÉDITOS!$B10,Cursos[CONCLUÍDO],\"Sim\")","v":0}]
[null,"Estudos gerais",{"$f":"IF(SUMIF(Cursos[EXIGÊNCIAS],CRÉDITOS!$B11,Cursos[CRÉDITOS])=0,\"0\",SUMIF(Cursos[EXIGÊNCIAS],CRÉDITOS!$B11,Cursos[CRÉDITOS]))","v":"0"},{"$f":"SUMIFS(Cursos[CRÉDITOS],Cursos[EXIGÊNCIAS],CRÉDITOS!$B11,Cursos[CONCLUÍDO],\"Sim\")","v":0},{"$f":"SUMIF(Cursos[EXIGÊNCIAS],CRÉDITOS!$B11,Cursos[CRÉDITOS])-SUMIFS(Cursos[CRÉDITOS],Cursos[EXIGÊNCIAS],CRÉDITOS!$B11,Cursos[CONCLUÍDO],\"Sim\")","v":0}]
[null,"Total",{"$f":"SUBTOTAL(109,CRÉDITOS!$C$8:$C$11)","v":9},{"$f":"SUBTOTAL(109,CRÉDITOS!$D$8:$D$11)","v":6},{"$f":"SUBTOTAL(109,CRÉDITOS!$E$8:$E$11)","v":3}]
[null,"Cursos"]
[null,"TÍTULO DO CURSO","N° CURSO","EXIGÊNCIAS","CRÉDITOS","CONCLUÍDO","NOTA","PERÍODO LETIVO"]
[null,"Curso 1","Número","Área de concentração acadêmica primária",4,"Sim",{"v":4,"d":"4.0"},"Período Letivo 1"]
[null,"Curso 2","Número","Área de concentração acadêmica secundária",3,"Não",null,"Período Letivo 1"]
[null,"Curso 3","Número","Curso opcional",2,"Sim",{"v":3,"d":"3.0"},"Período Letivo 1"]

{"sheet":"ORÇAMENTO","index":2,"n_rows":15,"n_cols":4,"rows_kept":15,"merged":[[5,1,5,2]]}
[null,{"$f":"Faculdade","v":"FACULDADE"}]
[null,"RASTREADOR DE ORÇAMENTO"]
[null,"Meu orçamento",{"$f":"Ano","v":"ANO"}]
[null,"PORCENTAGEM DO RENDIMENTO GASTO"]
[null,{"$f":"DESPESAS_LÍQUIDAS_MENSAIS/RENDA_LÍQUIDA_MENSAL","v":{"v":0.7454545454545455,"d":"R$ 1"}}]
[null,{"$f":"B5","v":0.7454545454545455}]
[null,"RENDA LÍQUIDA MENSAL","DESPESAS LÍQUIDAS MENSAIS","SALDO"]
[null,{"$f":"C10","v":{"v":2750,"d":"R$ 2,750"}},{"$f":"'DESPESAS LÍQUIDAS MENSAIS'!C4+'DESPESAS DO PERÍODO LETIVO'!D4","v":{"v":2050,"d":"R$ 2,050"}},{"$f":"RENDA_LÍQUIDA_MENSAL-DESPESAS_LÍQUIDAS_MENSAIS","v":{"v":700,"d":"R$ 700"}}]
[null,"Meses no período letivo",4]
[null,"RENDA MENSAL",{"$f":"SUM(RendaMensal[VALOR])","v":{"v":2750,"d":"R$ 2,750"}}]
[null,"ITEM","VALOR"]
[null,"Rendimento fixo",{"v":1500,"d":"R$ 1,500"}]
[null,"Assistência financeira",{"v":500,"d":"R$ 500"}]
[null,"Empréstimos",{"v":500,"d":"R$ 500"}]
[null,"Outras rendas",{"v":250,"d":"R$ 250"}]

{"sheet":"DESPESAS LÍQUIDAS MENSAIS","index":3,"n_rows":15,"n_cols":3,"rows_kept":15}
[null,{"$f":"Faculdade","v":"FACULDADE"}]
[null,"RASTREADOR DE ORÇAMENTO"]
[null,"Despesas mensais",{"$f":"Ano","v":"ANO"}]
[null,"DESPESAS MENSAIS",{"$f":"SUM(DespesasMensais[VALOR])","v":{"v":1675,"d":"R$ 1,675"}}]
[null,"ITEM","VALOR"]
[null,"Aluguel",{"v":300,"d":"R$ 300"}]
[null,"Utilitários",{"v":50,"d":"R$ 50"}]
[null,"Celular",{"v":75,"d":"R$ 75"}]
[null,"Supermercado",{"v":250,"d":"R$ 250"}]
[null,"Despesas do carro",{"v":50,"d":"R$ 50"}]
[null,"Financiamento estudantil",{"v":500,"d":"R$ 500"}]
[null,"Cartões de crédito",{"v":275,"d":"R$ 275"}]
[null,"Seguro",{"v":125,"d":"R$ 125"}]
[null,"Entretenimento",{"v":50,"d":"R$ 50"}]
[null,"Diversos",{"v":0,"d":"R$ 0"}]

{"sheet":"DESPESAS DO PERÍODO LETIVO","index":4,"n_rows":11,"n_cols":4,"rows_kept":11}
[null,{"$f":"Faculdade","v":"FACULDADE"}]
[null,"RASTREADOR DE ORÇAMENTO"]
[null,"Despesas do Período Letivo",{"$f":"Ano","v":"ANO"}]
[null,"Despesas do Período Letivo (Total/Por Mês)",{"$f":"SUM(DespesasDoPeríodoLetivo[VALOR])","v":{"v":1500,"d":"R$ 1,500"}},{"$f":"SUM(DespesasDoPeríodoLetivo[POR MÊS])","v":{"v":375,"d":"R$ 375"}}]
[null,"ITEM","VALOR","POR MÊS"]
[null,"Ensino",{"v":750,"d":"R$ 750"},{"$f":"DespesasDoPeríodoLetivo[[#This Row],[VALOR]]/Meses_no_período_letivo","v":{"v":187.5,"d":"R$ 188"}}]
[null,"Taxas de laboratório",{"v":250,"d":"R$ 250"},{"$f":"DespesasDoPeríodoLetivo[[#This Row],[VALOR]]/Meses_no_período_letivo","v":{"v":62.5,"d":"R$ 63"}}]
[null,"Livros",{"v":500,"d":"R$ 500"},{"$f":"DespesasDoPeríodoLetivo[[#This Row],[VALOR]]/Meses_no_período_letivo","v":{"v":125,"d":"R$ 125"}}]
[null,"Depósitos",{"v":0,"d":"R$ 0"},{"$f":"DespesasDoPeríodoLetivo[[#This Row],[VALOR]]/Meses_no_período_letivo","v":{"v":0,"d":"R$ 0"}}]
[null,"Transporte",{"v":0,"d":"R$ 0"},{"$f":"DespesasDoPeríodoLetivo[[#This Row],[VALOR]]/Meses_no_período_letivo","v":{"v":0,"d":"R$ 0"}}]
[null,"Outras taxas",{"v":0,"d":"R$ 0"},{"$f":"DespesasDoPeríodoLetivo[[#This Row],[VALOR]]/Meses_no_período_letivo","v":{"v":0,"d":"R$ 0"}}]

{"sheet":"LIVROS","index":5,"n_rows":7,"n_cols":7,"rows_kept":7}
[null,{"$f":"Faculdade","v":"FACULDADE"}]
[null,"RASTREADOR DE LIVROS"]
[null,"Lista de Livros"]
[null,"TÍTULO","AUTOR","CURSO","ONDE COMPRAR?","ISBN","ANOTAÇÕES"]
[null,"Título do Livro","Autor","Curso","Localização","Número"]
[null,"Título do Livro","Autor","Curso","Localização","Número"]
[null,"Título do Livro","Autor","Curso","Localização","Número"]